Cogmind - Beta 10.2 @@@ ROGUE MODE // 2021.05.14 @ 17:19:44 Player: Ruben Result: Destroyed by G-34 Mercenary with Small Laser Performance ------------- Evolutions (0) 0 Regions Visited (1) 200 Robots Destroyed (0) 0 Value Destroyed (0) 0 Prototype IDs (0) 0 Alien Tech Used (0) 0 Bonus (0) 0 TOTAL SCORE: 200 Bonus ------- None Cogmind --------- Core Integrity 0/250 Matter 191/300 Energy 100/100 System Corruption 0% Temperature Cool (6) Movement Core (100) Ox1 Location -10/Materials Parts ------- > --- POWER (1) -------- (None) > --- PROPULSION (2) --- (None) > --- UTILITY (2) ------ Small Storage Unit > --- WEAPON (2) ------- (None) > --- INVENTORY (6) ---- Light Ion Engine Peak State ------------ > --- POWER ------------ Ion Engine > --- PROPULSION ------- Aluminum Leg Aluminum Leg > --- UTILITY ---------- Small Storage Unit Targeting Computer > --- WEAPON ----------- EM Pulse Gun Light Assault Rifle > --- INVENTORY -------- Light Ion Engine EM Pulse Gun Beam Cannon [Rating: 7] Favorites ----------- Power Ion Engine Engine Ion Engine Propulsion Aluminum Leg Leg Aluminum Leg Flight Unit Flight Unit Utility Small Storage Unit Storage Small Storage Unit Processor Targeting Computer Weapon Light Assault Rifle Energy Gun EM Pulse Gun Energy Cannon Beam Cannon Ballistic Gun Light Assault Rifle Build | -11 -10 ------- Run | Scr Mat Slots Evolved . | . . Power . | . . Propulsion . | . . Utility . | . . Weapon . | . . Parts Attached 13 | 7 6 Power 2 | 2 . Engine 2 | 2 . Core . | . . Reactor . | . . Propulsion 3 | 2 1 Treads . | . . Leg 2 | 2 . Wheel . | . . Hover . | . . Flight 1 | . 1 Utility 2 | 1 1 Device . | . . Storage 1 | 1 . Processor 1 | . 1 Hackware . | . . Protection . | . . Artifact . | . . Weapon 6 | 2 4 Energy Gun 3 | 1 2 Energy Cannon 1 | . 1 Ballistic Gun 2 | 1 1 Ballistic Cannon . | . . Launcher . | . . Special Weapon . | . . Impact Weapon . | . . Slashing Weapon . | . . Piercing Weapon . | . . Special Melee Weapon . | . . Unidentified Prototypes . | . . Parts Lost 9 | . 9 Power 1 | . 1 Propulsion 3 | . 3 Utility 1 | . 1 Weapon 4 | . 4 Highest Loss Streak 9 | . 9 Average Slot Usage (%) 87 | . 87 Engine 12 | . 12 Leg 25 | . 25 Storage 14 | . 14 Processor 10 | . 10 Energy Gun 11 | . 11 Ballistic Gun 11 | . 11 Naked Turns . | . . Heaviest Build 12 | 12 12 Greatest Support 20 | 20 20 Greatest Overweight (x) 1 | 1 1 Average Overweight (x) . | . . Largest Inventory Capacity 6 | 6 6 Average Capacity 5 | 5 6 Most Carried 4 | 3 4 Average Carried 2 | 1 3 Final Capacity 6 | 6 6 Final Carried 2 | 2 1 Class Distribution -------------------- 100% | Mutant Dominant Class ---------------- Mutant | -10/Materials Resources | -11 -10 ----------- Run | Scr Mat Matter Collected 209 | 209 . Remotely . | . . Salvage Created . | . . Parts . | . . Haulers Intercepted . | . . Recyclers Shooed . | . . Parts Field Recycled . | . . Retrieved Matter . | . . Parts Self-Destructed . | . . Prevented . | . . Kills | -11 -10 ------- Run | Scr Mat Combat Hostiles Destroyed . | . . Classes Destroyed . | . . Best Kill Streak . | . . Combat Bots Only . | . . Max Kills in Single Turn . | . . Gunslinging . | . . Exploded . | . . Melee . | . . Uniques/NPCs Destroyed . | . . Combat | -11 -10 -------- Run | Scr Mat Damage Taken 803 | . 803 Core 251 | . 251 Absorbed by Shields . | . . Core Remaining (%) 100 | 100 . Volleys Fired 14 | . 14 Largest 2 | . 2 Hottest 100 | . 100 Shots Fired 24 | . 24 Gun 17 | . 17 Cannon 7 | . 7 Launcher . | . . Special . | . . Kinetic 7 | . 7 Thermal 7 | . 7 Explosive . | . . Electromagnetic 10 | . 10 Robot Hit Streak 1 | . 1 Robot Miss Streak 1 | . 1 Penetration Max . | . . Secondary Targets . | . . Shots Hit Robots 2 | . 2 Core Hits 2 | . 2 Critical Hits . | . . Critical Kills . | . . Critical Parts Destroyed . | . . Melee Attacks . | . . Impact . | . . Slashing . | . . Piercing . | . . Sneak Attacks . | . . Combat Hostiles . | . . Follow-up Attacks . | . . Damage Inflicted 44 | . 44 Guns 44 | . 44 Cannons . | . . Explosions . | . . Melee . | . . Ramming . | . . Kinetic 14 | . 14 Thermal . | . . Explosive . | . . Electromagnetic 30 | . 30 Impact . | . . Slashing . | . . Piercing . | . . Highest Corruption . | . . Average Corruption . | . . Corruption Purged . | . . Overload Shots . | . . Overflow Damage . | . . Projectiles . | . . Explosions . | . . Melee . | . . Knockbacks . | . . Impact . | . . Kinetic . | . . Secondary . | . . Self-Inflicted Damage . | . . Shots . | . . Rammed . | . . Targets Rammed . | . . Kicked . | . . Crushed . | . . Highest Temperature 442 | . 442 Average Temperature 176 | . 176 Received Heat Transfer 450 | . 450 Effects 2 | . 2 Energy Bleed 1 | . 1 Matter Decay 1 | . 1 Siege Activations . | . . Robots Corrupted . | . . Combat Hostiles . | . . Parts Fried . | . . Impact Corruptions . | . . Robots Melted . | . . Combat Hostiles . | . . Parts Melted . | . . Heat Transferred . | . . Parts Sabotaged . | . . Parts Stolen . | . . Parts Stripped . | . . Power Chain Reactions . | . . Missiles Intercepted . | . . Alert | -11 -10 ------- Run | Scr Mat Peak Influence 15 | . 15 Initial . | . . Average 8 | . 10 Maximum Alert Level . | . . Low Security (%) 100 | 100 100 Level 1 . | . . Level 2 . | . . Level 3 . | . . Level 4 . | . . Level 5 . | . . High Security . | . . Max Security . | . . Squads Dispatched 2 | . 2 Investigation 1 | . 1 Extermination . | . . Reinforcement 1 | . 1 Assault . | . . Garrison . | . . Intercept . | . . Construction Impeded . | . . Haulers Reinforced . | . . Stealth | -11 -10 --------- Run | Scr Mat Distress Signals . | . . Communications Jammed . | . . Distress Signals . | . . Times Spotted 7 | . 7 Peak Tracking Total 4 | . 4 Tactical Retreats 1 | . 1 Traps | -11 -10 ------- Run | Scr Mat Traps Triggered 2 | . 2 Indirectly . | . . Trap Hack Attempts . | . . Triggered . | . . Disarmed . | . . Reprogrammed . | . . Reused . | . . Traps Extracted . | . . Installed . | . . Triggered . | . . Machines | -11 -10 ---------- Run | Scr Mat Machines Disabled . | . . Max in Single Turn . | . . Machines Sabotaged . | . . Garrisons Compromised . | . . Overloaded Fab Kills . | . . Fab Network Shutdowns . | . . Hacking | -11 -10 --------- Run | Scr Mat Machines Accessed . | . . Terminals . | . . Fabricators . | . . Repair Stations . | . . Recycling Units . | . . Scanalyzers . | . . Garrison Access . | . . Total Hacks . | . . Successful . | . . Failed . | . . Catastrophic . | . . Database Lockouts . | . . Manual . | . . Terminals . | . . Fabricators . | . . Repair Stations . | . . Recycling Units . | . . Scanalyzers . | . . Garrison Access . | . . Terminal Hacks . | . . Fabricator Hacks . | . . Repair Station Hacks . | . . Recycling Unit Hacks . | . . Scanalyzer . | . . Garrison Access Hacks . | . . Unauthorized Hacks . | . . Terminals . | . . Fabricators . | . . Repair Stations . | . . Recycling Units . | . . Scanalyzers . | . . Garrison Access . | . . Data Cores Recovered . | . . Used . | . . Hacking Detections . | . . Full Trace Events . | . . Feedback Events . | . . Feedback Blocked . | . . Robot Schematics Acquired . | . . Robots Built . | . . Matter . | . . Time . | . . Total Robot Build Rating . | . . Part Schematics Acquired . | . . Parts Built . | . . Matter . | . . Time . | . . Total Part Build Rating . | . . Parts Repaired . | . . Time . | . . Parts Recycled . | . . Recycled Matter . | . . Retrieved Matter . | . . Retrieved Components . | . . Parts Scanalyzed . | . . Part Schematics Acquired . | . . Parts Damaged . | . . Bothacking | -11 -10 ------------ Run | Scr Mat Used RIF Installer . | . . Robots Hacked . | . . Non-combat . | . . Combat . | . . Robot Hacks Applied . | . . Relay Couplers Released . | . . Robots Rewired . | . . Allies Hacked . | . . Hacks Repelled . | . . Allies | -11 -10 -------- Run | Scr Mat Total Allies . | . . Largest Group . | . . Highest-Rated Group . | . . Highest-Rated Ally . | . . Total Orders . | . . Ally Attacks . | . . Total Damage . | . . Kills . | . . Allies Corrupted . | . . Allies Melted . | . . Intel | -11 -10 ------- Run | Scr Mat Robot Analysis Total . | . . Derelict Logs Recovered . | . . Drone Launches . | . . Drone Recoveries . | . . Exploration | -11 -10 ------------- Run | Scr Mat Turns Passed 422 | 61 361 Spaces Moved 200 | 43 157 Core 36 | 6 30 Treads . | . . Legs 161 | 37 124 Wheels . | . . Hover . | . . Flight 3 | . 3 Fastest Speed 50 | 50 50 Average Speed 114 | 113 114 Slowest Speed 150 | 150 120 Overloaded Moves . | . . Propulsion Burnouts . | . . Robots Hopped 1 | . 1 Cave-ins Triggered . | . . Exploration Rate (%) 12 | 4 20 Regions Visited 1 Branch Regions . Pre-discovered Areas . | . . Known Exits Taken . | . . Unknown Exits Taken 1 | 1 . Scrap Searched . | . . Spaces Dug . | . . Terrain Destroyed . | . . Melee . | . . Projectile . | . . AOE . | . . Terrain Rammed . | . . Walls Destroyed . | . . Machines Disabled . | . . Actions | -11 -10 --------- Run | Scr Mat Total 364 | 52 312 Wait 134 | . 134 Move 197 | 42 155 Hop 1 | . 1 Pick Up 4 | 2 2 Fast Attach 9 | 6 3 Attach 3 | . 3 Detach . | . . Swap 1 | 1 . Drop 1 | 1 . Fire 14 | . 14 Melee . | . . Ram . | . . Kick . | . . Crush . | . . Escape Stasis . | . . Rewire . | . . Trap . | . . Miscellaneous . | . . Route ------- -11/Scrapyard -10/Materials History --------- Turn | Location | Event 9 | -11/Scrapyard | Discovered new exit (range 15) 62 | -11/Scrapyard | Entered Materials 302 | -10/Materials | Build established: Mutant 388 | -10/Materials | Core integrity fell below 50% 401 | -10/Materials | Core integrity fell below 20% 423 | -10/Materials | Destroyed by G-34 Mercenary with Small Laser Last Messages --------------- 00135_ Acquired EM Pulse Gun. 00148_ Acquired Targeting Computer. 00170_ Acquired Flight Unit. 00312_ K-01 Serf collects debris. 00316_ K-01 Serf cleans the Fusion Modulator. 00336_ K-01 Serf collects debris. 00343_ K-01 Serf cleans the Atomic Centrifuge. 00363_ EM Pulse Gun destroyed. 00366_ Lgt. Assault Rifle destroyed. 00370_ G-47 Trooper misfires. 00374_ G-47 Trooper IFF system glitched. 00375_ Aluminum Leg destroyed. 00379_ EM Pulse Gun destroyed. 00382_ Ion Engine destroyed. 00386_ Beam Cannon destroyed. 00391_ Overheating: Matter decay (-26). 00393_ Overheating: Energy bleed (-17). 00393_ Flight Unit destroyed. 00408_ Targeting Computer destroyed. 00410_ Aluminum Leg destroyed. Map ----- +----------------------------------------------------+ | ??????????# ????????????? | | ??????????# ????????????? | | ??????????# ????????????? | | ??????????# #############?????????? | | ??????##### # #?????????? | | ??????# # """ """ #?????????? | | ??????# ##### + "T" """ #?????????? | | ??????# ????# # """ #?????????? | | ??????+ ?????# # [ #?????????? | | ??????# ?????# # #?????????? | | ??????# ??????# # #?????????? | | ??????#???????# #####+#######?????????? | | ??????????????# #???# #???????????????? | | ??????????????# #???# #???????????????? | | ??????????????# #???# #???????????????? | | ??????????????# #???# #???????????????? | | ??????????????# #???# #???????????????? | | ??????????????# #???# #???????????????? | | ??????????????# #???# #???????????????? | | ??????????????# #???# #?########??????? | | ??????????????# #???# #?# ! #??????? | | ??????????????# #???# #?# #??????? | | ??????????????# #???# #?# """ #??????? | | ??????????????# u #???# #?# """ #??????? | | ??????????????# #???# #?# """ #??????? | | ??????????????# @ #???# #?# #??????? | | ??????????????# #???# #####+####??????? | | ??????????????# #???# #?????????? | | ??????????????# #???#^ ####??????? | | ??????????????# g#####^ """ """#??????? | | ??????????????# """ T"#??????? | | ??????????######g#### """ """#??????? | | ??????????# # ####??????? | | ??????????# / #?????????? | | ??????????# """ ###+#######?????????? | | ??????????# """"" #? ???????????????? | | ??????????# """"" #? ???????????????? | | ??????????# """"" ## #??????????????? | | ??????????# """ ## #??????????????? | | ??????????#??? ## #??????????????? | | ??????????????######## #??????????????? | | ?????????????????????# #??????????????? | | ?????????????????????#####??????????????? | | ????????????????????????????????????????? | | ????????????????????????????????????????? | | ????????????????????????????????????????? | | ????????????????????????????????????????? | | ????????????????????????????????????????? | | ????????????????????????????????????????? | | ????????????????????????????????????????? | +----------------------------------------------------+ Best States ------------- Heat Dissipation 25 Energy Generation 10 Energy Capacity 250 Matter Stores 239 Matter Capacity 300 Sight Range 16 Terrain Scan Density 10 Evasion (%) 40 Targeting Accuracy 5 Item Schematics ----------------- None Robot Schematics ------------------ None Fabricated ------------ Nothing Alien Tech Used ----------------- None Achievements -------------- None Challenges ------------ None Game ------ Seed TitaniumHellfireBlade Manual? 0 Play Time 00:10:25 Cumulative 22.7 hours Start 2021.05.14 @ 17:05:20 End 2021.05.14 @ 17:19:44 Sessions 1 Manual Loads 0 Difficulty Rogue Special Mode None Game No. 40 Rogue 39 Adventurer 0 Explorer 1 Win Type - Total 0 Types 0/0/0/0/0/0/0/0/0 Lore% 20 Gallery% 30 Achievement% 19 Wizard Run 0 Options --------- ASCII 0 Keyboard 1 Movement Arrows Keybinds 0 Fullscreen 1 Font 18/SmallcapsGlow Map View 76x50 Tactical HUD 1 Map Filters NONE Filters NONE Steam 1 RUN: 9765f0c5-382e-4370-8dd3-f0179d1281bd